bitfinex/quotes_SOLUSD_20241111
["timestamp","ask_amount","ask_price","bid_price","bid_amount"]
[1731343356484,45.86220365,219.95,219.89,70.0]
[1731343356685,0.1,220.03,219.86,6.5451]
[1731343356686,0.1,220.03,219.91,70.0]
[1731343356893,64.22905665,220.08,219.95,70.0]
[1731343357093,0.2,220.06,219.92,70.0]
[1731343357278,0.1,220.04,219.89,70.0]
[1731343357472,0.2,220.06,219.92,70.0]
[1731343357908,45.86220365,219.98,219.92,70.0]
[1731343358581,45.86220365,219.93,219.89,70.0]
[1731343358788,45.86220365,219.91,219.86,76.5451]
[1731343358993,45.86220365,219.93,219.89,70.0]
[1731343359303,45.86220365,219.93,219.86,76.5451]
[1731343359474,45.86220365,219.91,219.86,76.5451]
[1731343359878,45.86220365,219.93,219.86,76.5451]
[1731343360096,45.86220365,219.95,219.9,20.0]
[1731343360982,45.86220365,219.93,219.86,76.5451]
[1731343361185,45.86220365,219.93,219.87,20.0]
[1731343361391,0.2,220.0,219.87,20.0]
[1731343361392,45.86220365,219.91,219.87,20.0]
[1731343362192,45.86220365,219.91,219.84,20.0]
[1731343362599,45.86220365,219.91,219.86,70.0]
[1731343362812,45.86220365,219.91,219.87,20.0]
[1731343363180,45.86220365,219.93,219.87,20.0]
[1731343364098,45.86220365,219.95,219.87,20.0]
[1731343364278,45.86220365,219.95,219.88,69.63908765]
[1731343364485,45.86220365,219.95,219.88,23.776884]
[1731343366585,45.86220365,219.95,219.87,20.0]
[1731343367283,45.86220365,219.93,219.87,20.0]
[1731343367490,45.86220365,219.93,219.85,20.0]
[1731343367886,45.86220365,219.95,219.87,20.0]
[1731343369206,45.86220365,219.93,219.85,20.0]
[1731343370104,45.86220365,219.91,219.84,20.0]
[1731343370788,45.86220365,219.95,219.86,45.86220365]
[1731343371109,45.86220365,219.95,219.87,20.0]
[1731343372691,45.86220365,219.93,219.85,20.0]
[1731343372890,45.86220365,219.93,219.87,20.0]
[1731343374886,45.86220365,219.95,219.87,20.0]
[1731343375993,45.86220365,219.93,219.85,20.0]
[1731343376197,45.86220365,219.86,219.85,20.0]
[1731343376412,45.86220365,219.9,219.84,20.0]
[1731343376598,45.86220365,219.94,219.86,20.0]
[1731343376905,45.86220365,219.94,219.87,45.86220365]
[1731343377201,45.86220365,219.94,219.88,20.0]
[1731343377811,45.86220365,219.94,219.86,20.0]
[1731343378113,45.86220365,219.96,219.88,20.0]
[1731343379592,45.86220365,219.94,219.88,20.0]
[1731343379993,45.86220365,219.94,219.87,45.86220365]
[1731343379994,45.86220365,219.94,219.86,20.0]
[1731343380412,45.86220365,219.96,219.87,45.86220365]
[1731343380611,45.86220365,219.96,219.88,20.0]
[1731343381210,45.86220365,219.92,219.84,20.0]
[1731343382104,45.86220365,219.9,219.82,20.0]
[1731343382706,45.86220365,219.92,219.84,20.0]
[1731343383096,45.86220365,219.94,219.85,45.86220365]
[1731343383287,45.86220365,219.94,219.86,20.0]
[1731343383490,45.86220365,219.96,219.87,45.86220365]
[1731343383907,0.1,219.99,219.87,45.86220365]
[1731343383908,45.86220365,219.94,219.88,20.0]
[1731343384127,32.33787608,220.05,219.97,70.0]
[1731343384128,5.16787608,220.05,219.97,70.0]
[1731343384296,5.9328,220.14,219.93,0.1]
[1731343384297,45.86220365,220.11,220.02,45.86220365]
[1731343384493,45.86220365,220.11,220.0,70.0]
[1731343384494,45.86220365,220.15,220.07,23.776884]
[1731343384712,45.86220365,220.17,220.08,65.86220365]
[1731343385019,45.86220365,220.13,220.07,20.0]
[1731343385200,45.86220365,220.09,220.03,21.729]
[1731343385510,45.86220365,220.05,219.98,20.0]
[1731343385714,45.86220365,220.02,219.98,20.0]
[1731343386102,45.86220365,220.02,219.92,45.86220365]
[1731343386103,45.86220365,220.0,219.9,6.1827]
[1731343386412,45.86220365,219.92,219.86,16.2794]
[1731343387200,45.86220365,219.9,219.86,16.2794]
[1731343387509,45.86220365,219.96,219.8,48.86220365]
[1731343387510,45.86220365,219.88,219.8,48.86220365]
[1731343387713,45.86220365,219.96,219.79,85.1371]
[1731343387714,0.1,219.94,219.79,85.1371]
[1731343387895,45.86220365,219.9,219.81,45.96220365]
[1731343388305,45.86220365,219.88,219.81,45.86220365]
[1731343388518,45.86220365,219.88,219.82,20.0]
[1731343388720,45.86220365,219.9,219.82,20.0]
[1731343389108,45.86220365,219.88,219.82,20.0]
[1731343389511,45.86220365,219.86,219.8,20.0]
[1731343389721,45.86220365,219.86,219.81,0.1]
[1731343389921,45.86220365,219.86,219.8,20.0]
[1731343390925,0.1,219.75,219.63,70.0]
[1731343391219,45.86220365,219.65,219.51,45.86220365]
[1731343391429,45.86220365,219.65,219.5,6.2743]
[1731343391430,45.86220365,219.54,219.46,70.0]
[1731343391809,45.86220365,219.52,219.46,70.0]
[1731343392017,45.86220365,219.56,219.49,70.0]
[1731343392321,0.1,219.66,219.47,45.96220365]
[1731343392322,45.86220365,219.54,219.47,70.0]
[1731343392623,45.86220365,219.56,219.5,70.0]
[1731343392816,5.8328,219.79,219.47,45.86220365]
[1731343392817,45.86220365,219.6,219.54,20.0]
[1731343393205,45.86220365,219.6,219.53,115.86220365]
[1731343393412,0.1,219.7,219.53,115.86220365]
[1731343393413,45.86220365,219.62,219.53,115.86220365]
[1731343393712,45.86220365,219.6,219.53,70.0]
[1731343394409,45.86220365,219.6,219.54,43.776884]
[1731343394810,45.86220365,219.58,219.52,20.0]
[1731343395025,45.86220365,219.58,219.52,23.776884]
[1731343395225,45.86220365,219.56,219.51,20.0]
[1731343395417,45.86220365,219.58,219.5,70.0]
[1731343395612,45.86220365,219.58,219.53,70.0]
[1731343396230,45.86220365,219.54,219.44,70.0]
[1731343396416,45.96220365,219.6,219.44,70.0]
[1731343396417,45.86220365,219.5,219.44,70.0]
[1731343397136,45.86220365,219.52,219.49,70.0]
[1731343397311,45.86220365,219.54,219.49,70.0]
[1731343398135,18.196646,219.67,219.42,6.2743]
[1731343398136,45.86220365,219.56,219.53,43.776884]
[1731343398525,45.86220365,219.56,219.5,20.0]
[1731343398718,45.86220365,219.56,219.53,20.0]
[1731343399031,45.86220365,219.54,219.46,70.0]
[1731343399209,45.86220365,219.52,219.43,115.86220365]
[1731343399438,45.86220365,219.5,219.43,115.86220365]
[1731343399928,45.86220365,219.5,219.44,70.0]
[1731343400110,45.86220365,219.5,219.43,45.86220365]
[1731343400111,45.86220365,219.52,219.47,70.0]
[1731343400315,45.86220365,219.52,219.48,20.0]
[1731343401228,45.86220365,219.52,219.45,20.0]
[1731343401414,45.86220365,219.52,219.47,20.0]
[1731343401613,45.86220365,219.5,219.47,20.0]
[1731343402018,45.86220365,219.5,219.47,90.0]
[1731343402231,45.86220365,219.52,219.47,90.0]
[1731343402630,45.86220365,219.54,219.49,20.0]
[1731343403116,45.86220365,219.56,219.54,20.0]
[1731343403329,45.86220365,219.58,219.54,20.0]
[1731343403711,18.196646,219.67,219.46,70.0]
[1731343403712,45.86220365,219.56,219.46,70.0]
[1731343403929,45.86220365,219.52,219.47,20.0]
[1731343404312,45.86220365,219.56,219.51,20.0]
[1731343404726,45.86220365,219.56,219.54,20.0]
[1731343405120,45.86220365,219.6,219.57,20.0]
[1731343405331,45.86220365,219.62,219.6,20.0]
[1731343406012,45.86220365,219.66,219.6,20.0]
[1731343406217,45.86220365,219.68,219.64,20.0]
[1731343407037,45.86220365,219.68,219.66,70.0]
[1731343407340,45.86220365,219.7,219.67,20.0]
[1731343407543,45.86220365,219.76,219.7,20.0]
[1731343407737,45.86220365,219.8,219.76,20.0]
[1731343408234,18.178357,219.9,219.76,20.0]
[1731343408235,45.86220365,219.85,219.79,20.0]
[1731343408419,45.86220365,219.85,219.82,20.0]
[1731343408737,45.86220365,219.85,219.76,51.94620365]
[1731343408738,45.86220365,219.83,219.79,20.0]
[1731343409227,45.86220365,219.85,219.79,20.0]
[1731343409825,45.86220365,219.83,219.79,20.0]
[1731343410629,45.86220365,219.83,219.78,70.0]
[1731343410934,0.1,219.94,219.78,70.0]
[1731343410935,45.86220365,219.87,219.82,20.0]
[1731343411327,45.86220365,219.91,219.9,70.0]
[1731343411528,45.86220365,219.93,219.91,20.0]
[1731343411822,45.86220365,219.93,219.84,70.0]
[1731343412138,45.86220365,219.86,219.85,20.0]
[1731343412720,45.86220365,219.86,219.8,70.0]
[1731343412721,45.86220365,219.86,219.81,20.0]
[1731343412940,45.86220365,219.84,219.81,20.0]
[1731343413922,45.86220365,219.86,219.81,20.0]
[1731343414242,45.86220365,219.9,219.88,20.0]
[1731343414426,45.86220365,219.93,219.91,20.0]
[1731343414628,45.86220365,219.92,219.87,20.0]
[1731343414952,45.86220365,219.92,219.9,20.0]
[1731343415255,45.86220365,219.96,219.93,70.0]
[1731343415420,45.86220365,219.96,219.94,20.0]
[1731343415620,45.86220365,219.95,219.94,20.0]
[1731343416026,45.86220365,219.95,219.89,20.0]
[1731343416233,45.86220365,219.91,219.89,20.0]
[1731343417024,45.86220365,219.91,219.86,20.0]
[1731343417222,45.86220365,219.93,219.89,20.0]
[1731343417547,45.86220365,219.95,219.92,20.0]
[1731343417874,45.86220365,219.93,219.85,70.0]
[1731343418139,45.86220365,219.89,219.86,20.0]
[1731343419143,45.86220365,219.87,219.83,20.0]
[1731343419347,45.86220365,219.87,219.82,70.0]
[1731343420425,45.86220365,219.89,219.82,70.0]
[1731343420740,45.86220365,219.87,219.83,20.0]
[1731343420940,45.86220365,219.85,219.8,20.0]
[1731343421141,45.86220365,219.83,219.79,70.0]
[1731343421645,45.86220365,219.85,219.82,70.0]
[1731343422443,45.86220365,219.85,219.79,70.0]
[1731343422949,45.86220365,219.85,219.8,20.0]
[1731343423633,45.86220365,219.87,219.83,20.0]
[1731343423830,45.86220365,219.85,219.83,20.0]
[1731343424230,45.86220365,219.85,219.8,20.0]
[1731343425242,45.86220365,219.87,219.8,20.0]
[1731343425552,45.86220365,219.85,219.8,20.0]
[1731343425932,45.86220365,219.81,219.77,20.0]
[1731343426657,45.86220365,219.83,219.8,20.0]
[1731343427535,45.86220365,219.81,219.76,6.084]
[1731343427751,45.86220365,219.77,219.76,6.084]
[1731343428337,45.86220365,219.77,219.73,70.0]
[1731343428639,45.86220365,219.75,219.7,76.1175]
[1731343429044,45.86220365,219.75,219.73,70.0]
[1731343429354,45.86220365,219.77,219.73,70.0]
[1731343429649,45.86220365,219.77,219.74,20.0]
[1731343429858,45.86220365,219.75,219.74,20.0]
[1731343430149,45.86220365,219.75,219.71,20.0]
[1731343430453,45.86220365,219.73,219.71,20.0]
[1731343431035,45.86220365,219.73,219.63,70.0]
[1731343431350,45.86220365,219.65,219.63,70.0]
[1731343431537,45.86220365,219.72,219.69,70.0]
[1731343431736,45.86220365,219.74,219.72,70.0]
[1731343432135,45.86220365,219.76,219.72,70.0]
[1731343432752,45.86220365,219.76,219.73,20.0]
[1731343432953,45.86220365,219.78,219.73,20.0]
[1731343433251,45.86220365,219.76,219.73,20.0]
[1731343434650,45.86220365,219.74,219.7,20.0]
[1731343435136,45.86220365,219.74,219.67,20.0]
[1731343436453,45.86220365,219.74,219.7,20.0]
[1731343436854,45.86220365,219.72,219.7,20.0]
[1731343437152,45.86220365,219.72,219.66,70.0]
[1731343437761,45.86220365,219.7,219.66,70.0]
[1731343437959,45.86220365,219.72,219.66,70.0]
[1731343438168,45.86220365,219.74,219.69,70.0]
[1731343438362,45.86220365,219.7,219.67,20.0]
[1731343439151,45.86220365,219.72,219.67,20.0]
[1731343439836,45.86220365,219.74,219.7,20.0]
[1731343440037,45.86220365,219.72,219.7,20.0]
[1731343440942,45.86220365,219.74,219.7,20.0]
[1731343441539,45.86220365,219.72,219.7,20.0]
[1731343441949,45.86220365,219.74,219.7,20.0]
[1731343442359,45.86220365,219.78,219.73,20.0]
[1731343442557,27.17,219.93,219.76,20.0]
[1731343442558,45.86220365,219.8,219.76,20.0]
[1731343442742,45.86220365,219.82,219.8,20.0]
[1731343442941,45.86220365,219.82,219.73,15.9407]
[1731343442942,45.86220365,219.82,219.74,20.0]
[1731343443260,45.86220365,219.78,219.76,20.0]
[1731343443451,45.86220365,219.8,219.76,20.0]
[1731343443846,45.86220365,219.91,219.87,70.0]
[1731343444159,15.1705,220.02,219.78,6.0559]
[1731343444160,45.86220365,219.93,219.91,20.0]
[1731343444367,45.86220365,220.08,219.9,70.0]
[1731343444368,45.86220365,219.99,219.95,20.0]
[1731343445042,45.86220365,219.99,219.93,23.776884]
[1731343445240,45.86220365,219.99,219.92,20.0]
[1731343445540,45.86220365,219.97,219.94,70.0]
[1731343445736,45.86220365,220.01,219.95,20.0]
[1731343446336,45.86220365,219.99,219.95,20.0]
[1731343446547,45.86220365,219.99,219.91,20.0]
[1731343447061,45.86220365,220.03,219.97,20.0]
[1731343448473,18.161244,220.19,219.92,6.5716]
[1731343448474,45.86220365,220.07,220.01,20.0]
[1731343449347,45.86220365,220.04,219.97,23.776884]
[1731343449541,0.2,220.14,219.99,20.0]
[1731343449743,1.96194453,220.16,220.02,20.0]
[1731343449744,45.86220365,220.06,220.02,20.0]
[1731343450159,45.86220365,220.08,220.02,20.0]
[1731343450659,45.86220365,220.06,220.02,20.0]
[1731343450868,45.86220365,220.06,219.96,16.5447]
[1731343450869,45.86220365,220.04,219.99,20.0]
[1731343451165,45.86220365,220.02,219.99,20.0]
[1731343451658,45.86220365,220.06,219.99,20.0]
[1731343451858,45.86220365,220.06,220.02,20.0]
[1731343452066,45.86220365,220.08,220.02,20.0]
[1731343452247,45.86220365,220.08,220.04,20.0]
[1731343452648,45.86220365,220.06,220.04,20.0]
[1731343452961,45.86220365,220.06,220.01,20.0]
[1731343454357,23.876884,220.17,220.04,20.0]
[1731343454358,45.86220365,220.08,220.04,20.0]
[1731343455461,45.86220365,220.1,220.04,20.0]
[1731343455653,45.86220365,220.1,220.07,20.0]
[1731343456651,45.86220365,220.14,220.11,20.0]
[1731343456857,45.86220365,220.16,220.11,20.0]
[1731343457446,45.86220365,220.12,220.11,20.0]
[1731343457642,45.86220365,220.12,220.08,6.2545]
[1731343457643,45.86220365,220.12,220.09,20.0]
[1731343457859,45.86220365,220.1,220.09,20.0]
[1731343458058,45.86220365,220.1,220.05,20.0]
[1731343458257,45.86220365,220.06,220.01,70.0]
[1731343458463,45.86220365,220.04,220.01,70.0]
[1731343458667,45.86220365,220.06,220.04,70.0]
[1731343458855,45.86220365,220.06,220.01,70.0]
[1731343459056,0.2,220.17,219.98,70.0]
[1731343459057,45.86220365,220.04,219.98,70.0]
[1731343459253,0.1,220.15,219.98,70.0]
[1731343459254,45.86220365,220.02,219.98,70.0]
[1731343459457,45.86220365,220.04,219.98,70.0]
[1731343460555,45.86220365,220.04,219.99,20.0]
[1731343460769,45.86220365,220.06,220.02,20.0]
[1731343461271,45.86220365,220.04,220.02,20.0]
[1731343461446,45.86220365,220.04,219.99,20.0]
[1731343461651,45.86220365,220.02,219.99,20.0]
[1731343461850,45.86220365,220.0,219.99,20.0]
[1731343462457,45.86220365,220.02,219.99,20.0]
[1731343463053,45.86220365,220.04,219.99,20.0]
[1731343463253,45.86220365,220.04,220.01,70.0]
[1731343463449,45.86220365,220.06,220.04,70.0]
[1731343463652,45.86220365,220.06,220.05,20.0]
[1731343464159,45.86220365,220.06,219.99,20.0]
[1731343464373,45.86220365,220.0,219.96,6.0554]
[1731343464569,45.86220365,219.98,219.96,6.0554]
[1731343464875,45.86220365,220.0,219.98,70.0]
[1731343465174,45.86220365,220.0,219.96,6.0554]
[1731343465352,45.86220365,219.98,219.96,6.0554]
[1731343466371,45.86220365,219.98,219.95,70.0]
[1731343466556,45.86220365,219.98,219.96,20.0]
[1731343467266,45.86220365,219.98,219.91,0.1]
[1731343467267,45.86220365,219.98,219.92,70.0]
[1731343467459,45.86220365,219.94,219.86,70.0]
[1731343467661,45.86220365,219.91,219.89,70.0]
[1731343468058,45.86220365,219.91,219.86,70.0]
[1731343468680,45.86220365,219.89,219.86,70.0]
[1731343468860,45.86220365,219.87,219.84,6.6421]
[1731343469064,45.86220365,219.85,219.84,6.6421]
[1731343469257,45.86220365,219.85,219.8,70.0]
[1731343469462,45.86220365,219.82,219.77,76.4555]
[1731343470179,45.86220365,219.79,219.75,16.0504]
[1731343470362,45.86220365,219.84,219.74,70.0]
[1731343470363,45.86220365,219.77,219.74,70.0]
[1731343470562,45.86220365,219.81,219.77,70.0]
[1731343471279,45.86220365,219.78,219.74,70.0]
[1731343471581,45.86220365,219.76,219.74,70.0]
[1731343473077,45.86220365,219.76,219.72,20.0]
[1731343473461,45.86220365,219.79,219.74,70.0]
[1731343473875,45.86220365,219.81,219.77,70.0]
[1731343474384,0.1,219.94,219.77,70.0]
[1731343474385,45.86220365,219.79,219.77,70.0]
[1731343475164,45.86220365,219.79,219.75,20.0]
[1731343475368,45.86220365,219.79,219.74,70.0]
[1731343475972,45.86220365,219.75,219.72,20.0]
[1731343476679,45.86220365,219.75,219.71,76.0704]
[1731343476878,45.86220365,219.73,219.68,86.316]
[1731343477385,45.86220365,219.69,219.68,70.0]
[1731343477583,45.86220365,219.69,219.65,76.5985]
[1731343477965,45.86220365,219.67,219.65,76.5985]
[1731343478184,45.86220365,219.67,219.61,22.32562981]
[1731343478185,45.86220365,219.67,219.62,70.0]
[1731343478387,45.86220365,219.63,219.59,70.0]
[1731343479086,45.86220365,219.61,219.59,70.0]
[1731343479284,45.86220365,219.63,219.62,70.0]
[1731343479489,45.86220365,219.68,219.62,70.0]
[1731343479800,18.287977,219.83,219.68,70.0]
[1731343479801,45.86220365,219.72,219.68,70.0]
[1731343480090,45.86220365,219.74,219.68,70.0]
[1731343480262,45.86220365,219.72,219.68,70.0]
[1731343480869,45.86220365,219.7,219.63,20.0]
[1731343481077,45.86220365,219.68,219.63,20.0]
[1731343481276,45.86220365,219.66,219.62,70.0]
[1731343481771,45.86220365,219.66,219.59,70.0]
[1731343482279,45.86220365,219.66,219.62,70.0]
[1731343482588,45.86220365,219.7,219.65,70.0]
[1731343483688,45.86220365,219.68,219.65,70.0]
[1731343483987,45.86220365,219.66,219.61,70.0]
[1731343484180,45.86220365,219.64,219.58,76.5985]
[1731343485395,45.86220365,219.62,219.58,76.5985]
[1731343485564,45.86220365,219.66,219.63,70.0]
[1731343486487,45.86220365,219.64,219.6,70.0]
[1731343486794,45.86220365,219.72,219.58,6.5985]
[1731343486795,45.86220365,219.62,219.58,6.5985]
[1731343487482,45.86220365,219.6,219.57,70.0]
[1731343487788,0.1,219.69,219.54,86.5452]
[1731343487991,45.86220365,219.56,219.49,70.0]
[1731343488292,45.86220365,219.56,219.52,70.0]
[1731343488597,45.86220365,219.58,219.52,70.0]
[1731343488770,45.86220365,219.6,219.55,70.0]
[1731343489185,45.86220365,219.56,219.55,90.0]
[1731343489382,45.86220365,219.59,219.55,90.0]
[1731343489776,45.86220365,219.59,219.53,20.0]
[1731343489984,45.86220365,219.57,219.53,20.0]
[1731343490178,45.86220365,219.55,219.52,70.0]
[1731343490395,45.86220365,219.55,219.49,70.0]
[1731343491083,0.1,219.68,219.55,70.0]
[1731343491269,45.86220365,219.59,219.55,70.0]
[1731343492399,45.86220365,219.57,219.52,20.0]
[1731343492687,45.86220365,219.55,219.52,20.0]
[1731343492891,45.86220365,219.57,219.52,20.0]
[1731343493092,45.86220365,219.59,219.57,70.0]
[1731343493284,45.86220365,219.61,219.57,70.0]
[1731343493470,45.86220365,219.63,219.6,70.0]
[1731343493791,45.86220365,219.63,219.58,20.0]
[1731343493792,45.86220365,219.65,219.61,70.0]
[1731343494208,45.86220365,219.63,219.58,20.0]
[1731343494492,0.1,219.71,219.58,20.0]
[1731343494493,45.86220365,219.6,219.58,20.0]
[1731343494993,45.86220365,219.64,219.62,20.0]
[1731343495406,45.86220365,219.64,219.59,20.0]
[1731343495585,45.86220365,219.62,219.59,20.0]
[1731343497392,45.86220365,219.62,219.58,70.0]
[1731343498593,45.86220365,219.66,219.62,20.0]
[1731343498993,45.86220365,219.72,219.62,20.0]
[1731343498994,45.86220365,219.64,219.62,20.0]
[1731343499207,45.86220365,219.64,219.61,70.0]
[1731343499378,45.86220365,219.64,219.59,20.0]
[1731343499792,45.86220365,219.66,219.59,20.0]
[1731343500591,45.86220365,219.66,219.62,20.0]
[1731343500978,45.86220365,219.64,219.6,6.5969]
[1731343501194,45.86220365,219.64,219.61,20.0]
[1731343501377,45.86220365,219.64,219.59,20.0]
[1731343502283,45.86220365,219.72,219.52,70.0]
[1731343502284,45.86220365,219.6,219.52,70.0]
[1731343502488,45.86220365,219.58,219.55,70.0]
[1731343502789,45.86220365,219.6,219.55,70.0]
[1731343502989,45.86220365,219.62,219.58,70.0]
[1731343503385,45.86220365,219.64,219.58,70.0]
[1731343503692,45.86220365,219.64,219.59,20.0]
[1731343504977,45.86220365,219.62,219.55,70.0]
[1731343505290,45.86220365,219.6,219.55,70.0]
[1731343506181,45.86220365,219.6,219.52,115.86220365]
[1731343506381,45.86220365,219.58,219.52,70.0]
[1731343506780,45.86220365,219.58,219.53,20.0]
[1731343506997,45.86220365,219.6,219.53,20.0]
[1731343507381,45.86220365,219.66,219.59,20.0]
[1731343507603,45.86220365,219.64,219.59,20.0]
[1731343507944,45.86220365,219.72,219.56,45.86220365]
[1731343507945,45.86220365,219.6,219.56,20.0]
[1731343508106,45.86220365,219.58,219.52,70.0]
[1731343508404,45.86220365,219.53,219.49,70.0]
[1731343508991,45.86220365,219.53,219.46,70.0]
[1731343509208,45.86220365,219.51,219.46,70.0]
[1731343509395,45.86220365,219.51,219.43,76.2711]
[1731343509579,45.86220365,219.49,219.43,76.2711]
[1731343510196,45.86220365,219.47,219.41,15.0935]
[1731343511005,45.86220365,219.49,219.4,115.86220365]
[1731343511301,45.86220365,219.49,219.34,115.86220365]
[1731343511302,45.86220365,219.43,219.34,115.86220365]
[1731343511495,45.86220365,219.41,219.32,45.86220365]
[1731343511683,45.86220365,219.41,219.3,6.2711]
[1731343511684,45.86220365,219.41,219.34,115.86220365]
[1731343511882,45.86220365,219.41,219.33,70.0]
[1731343512308,45.86220365,219.39,219.32,70.0]
[1731343512690,45.86220365,219.39,219.33,20.0]
[1731343512885,45.96220365,219.48,219.31,20.0]
[1731343512886,45.86220365,219.37,219.31,20.0]
[1731343513202,45.96220365,219.48,219.24,0.1]
[1731343513203,45.86220365,219.34,219.26,45.86220365]
[1731343513597,45.86220365,219.34,219.27,70.0]
[1731343513907,45.86220365,219.49,219.4,70.0]
[1731343514206,45.86220365,219.49,219.39,45.86220365]
[1731343514503,45.86220365,219.49,219.4,20.0]
[1731343514710,0.1,219.55,219.44,45.86220365]
[1731343514711,45.86220365,219.53,219.44,45.86220365]
[1731343514921,45.86220365,219.51,219.44,45.86220365]
[1731343515082,45.86220365,219.49,219.4,45.86220365]
[1731343515282,45.86220365,219.43,219.35,20.0]
[1731343515596,45.86220365,219.41,219.34,45.86220365]
[1731343515789,45.86220365,219.43,219.34,45.86220365]
[1731343516811,45.86220365,219.41,219.34,45.86220365]
[1731343517000,23.776884,219.42,219.34,45.86220365]
[1731343517483,45.86220365,219.37,219.25,70.0]
[1731343517684,45.86220365,219.35,219.27,45.86220365]
[1731343517884,45.86220365,219.37,219.31,70.0]
[1731343518189,45.86220365,219.4,219.31,115.86220365]
[1731343518696,45.86220365,219.42,219.33,45.86220365]
[1731343519011,45.86220365,219.42,219.34,70.0]
[1731343519209,45.86220365,219.42,219.35,20.0]
[1731343519705,5.8328,219.47,219.28,45.86220365]
[1731343519706,45.86220365,219.36,219.28,45.86220365]
[1731343519906,45.86220365,219.34,219.27,70.0]
[1731343520086,45.86220365,219.36,219.28,45.86220365]
[1731343520292,45.86220365,219.36,219.29,45.86220365]
[1731343520613,45.86220365,219.36,219.27,45.86220365]
[1731343521706,45.86220365,219.36,219.29,45.86220365]
[1731343522211,45.86220365,219.36,219.28,20.0]
[1731343522709,45.86220365,219.38,219.29,45.86220365]
[1731343522889,45.86220365,219.38,219.28,90.0]
[1731343522890,45.86220365,219.38,219.31,115.86220365]
[1731343524001,45.86220365,219.44,219.37,45.86220365]
[1731343524813,45.86220365,219.44,219.35,65.86220365]
[1731343525116,45.86220365,219.4,219.34,20.0]
[1731343525500,45.86220365,219.4,219.33,45.86220365]
[1731343525696,45.86220365,219.4,219.33,20.0]
[1731343526208,0.1,219.43,219.31,45.86220365]
[1731343526507,45.86220365,219.36,219.29,65.86220365]
[1731343526703,0.1,219.43,219.29,65.86220365]
[1731343526704,45.86220365,219.38,219.29,65.86220365]
[1731343528113,45.86220365,219.36,219.27,52.01260365]
[1731343528411,45.86220365,219.36,219.2,45.86220365]
[1731343528412,45.86220365,219.28,219.2,45.86220365]
[1731343528798,45.86220365,219.26,219.18,45.86220365]
[1731343529104,15.8312,219.36,219.25,45.86220365]
[1731343529314,45.86220365,219.31,219.23,45.86220365]
[1731343529507,45.86220365,219.29,219.21,45.86220365]
[1731343529703,45.86220365,219.27,219.19,45.86220365]
[1731343530210,23.776884,219.24,219.17,45.86220365]
[1731343530396,23.776884,219.24,219.15,45.86220365]
[1731343530397,45.86220365,219.23,219.15,45.86220365]
[1731343530594,45.86220365,219.16,219.07,15.2493]
[1731343530789,45.86220365,219.14,219.07,45.86220365]
[1731343530993,45.86220365,219.12,219.05,52.04550365]
[1731343531212,45.86220365,219.12,219.05,122.04550365]
[1731343531390,45.86220365,219.1,219.05,6.1833]
[1731343531585,0.1,219.18,219.05,6.1833]
[1731343531586,45.86220365,219.12,219.05,6.1833]
[1731343531787,45.86220365,219.12,219.03,45.86220365]
[1731343532288,45.86220365,219.14,219.07,45.86220365]
[1731343532913,45.86220365,219.14,219.05,70.0]
[1731343533110,45.86220365,219.14,219.05,115.86220365]
[1731343533420,23.776884,219.13,219.05,45.86220365]
[1731343533608,45.86220365,219.12,219.03,45.86220365]
[1731343533810,23.776884,219.09,219.03,45.86220365]
[1731343534114,23.776884,219.09,218.99,70.0]
[1731343534115,45.86220365,219.06,218.99,45.86220365]
[1731343534299,45.86220365,219.06,218.97,45.86220365]
[1731343534610,45.86220365,219.04,218.95,45.86220365]
[1731343535316,45.86220365,219.06,218.97,45.86220365]
[1731343535813,0.1,219.08,218.96,70.0]